bitfinex/quotes_BTCUSD_20240729
["timestamp","ask_amount","ask_price","bid_price","bid_amount"]
[1722293894381,1.47333304,67347.0,67346.0,0.001813]
[1722293895201,1.17636404,67347.0,67346.0,0.001813]
[1722293895399,1.16228351,67347.0,67346.0,0.000813]
[1722293895620,1.45925251,67347.0,67346.0,0.000813]
[1722293895820,1.47325251,67347.0,67346.0,0.001813]
[1722293896020,1.17628351,67347.0,67346.0,0.001813]
[1722293896386,1.47325251,67347.0,67346.0,0.001813]
[1722293896586,1.17628351,67347.0,67346.0,0.001813]
[1722293897102,1.15298618,67347.0,67346.0,0.001813]
[1722293897727,1.16698618,67347.0,67346.0,0.001813]
[1722293898105,1.15298618,67347.0,67346.0,0.000813]
[1722293898304,1.00608618,67347.0,67346.0,0.000813]
[1722293898478,0.70911718,67347.0,67346.0,0.000813]
[1722293898686,0.65643776,67347.0,67346.0,0.000813]
[1722293898883,0.35946876,67347.0,67346.0,0.000813]
[1722293899261,0.21098476,67347.0,67346.0,0.000813]
[1722293899711,0.35946876,67347.0,67346.0,0.000813]
[1722293900254,0.37346876,67347.0,67346.0,0.001813]
[1722293901327,0.35946876,67347.0,67346.0,0.001813]
[1722293902375,0.38276473,67347.0,67346.0,0.001813]
[1722293902749,0.37346876,67347.0,67346.0,0.001813]
[1722293903550,0.36585993,67347.0,67346.0,0.001813]
[1722293906084,0.38915595,67347.0,67346.0,0.001813]
[1722293906385,0.36585993,67347.0,67346.0,0.001813]
[1722293909226,0.21737593,67347.0,67346.0,0.001813]
[1722293909423,0.36585993,67347.0,67346.0,0.00313986]
[1722293909629,0.3891559,67347.0,67346.0,0.00313986]
[1722293909874,0.36585993,67347.0,67346.0,0.001813]
[1722293910227,0.21737593,67347.0,67346.0,0.001813]
[1722293911010,0.21737593,67347.0,67346.0,0.03205866]
[1722293911382,0.21737593,67347.0,67346.0,0.001813]
[1722293913197,0.24067162,67347.0,67346.0,0.001813]
[1722293913900,0.24067162,67347.0,67346.0,0.0023207]
[1722293914101,0.24067162,67347.0,67346.0,0.001813]
[1722293914305,0.21737593,67347.0,67346.0,0.001813]
[1722293915302,0.21737593,67347.0,67346.0,0.0023207]
[1722293915489,0.21737593,67347.0,67346.0,0.001813]
[1722293915944,0.21737593,67347.0,67346.0,0.088313]
[1722293916148,0.21737593,67347.0,67346.0,0.001813]
[1722293917687,0.24067174,67347.0,67346.0,0.001813]
[1722293917962,0.36585993,67347.0,67346.0,0.001813]
[1722293920721,0.38915578,67347.0,67346.0,0.001813]
[1722293921193,0.36585993,67347.0,67346.0,0.001813]
[1722293924121,1.31946693,67347.0,67346.0,0.001813]
[1722293924352,1.48370548,67347.0,67346.0,0.001813]
[1722293924568,1.5057991,67347.0,67346.0,0.001813]
[1722293925247,1.50579206,67347.0,67346.0,0.001813]
[1722293925475,1.48249605,67347.0,67346.0,0.001813]
[1722293926884,1.76900862,67347.0,67346.0,0.001813]
[1722293927119,1.86170862,67347.0,67346.0,0.001813]
[1722293927333,1.99425634,67347.0,67346.0,0.001813]
[1722293927567,2.44530695,67347.0,67346.0,0.001813]
[1722293927789,2.59437686,67347.0,67346.0,0.001813]
[1722293928000,2.44530695,67347.0,67346.0,0.001813]
[1722293928356,2.57603673,67347.0,67346.0,0.000813]
[1722293928770,2.59933897,67347.0,67346.0,0.000813]
[1722293929571,2.61333897,67347.0,67346.0,0.000813]
[1722293929776,0.01,67333.0,67319.0,0.0015542]
[1722293929977,0.74272,67320.0,67319.0,0.0015542]
[1722293930270,0.18862729,67320.0,67319.0,0.27695389]
[1722293930481,0.30428995,67320.0,67319.0,0.2252]
[1722293930684,0.60137795,67320.0,67319.0,0.2252]
[1722293931043,0.30428995,67320.0,67319.0,0.2252]
[1722293931190,0.61537795,67320.0,67319.0,0.2252]
[1722293933119,0.60137795,67320.0,67319.0,0.2252]
[1722293933527,0.93577058,67320.0,67319.0,0.2252]
[1722293933725,0.148555,67315.0,67314.0,0.0865]
[1722293933960,0.29165439,67315.0,67314.0,0.0865]
[1722293934143,0.30428593,67315.0,67314.0,0.0865]
[1722293934350,0.30428593,67315.0,67314.0,0.2275]
[1722293934887,0.60139593,67315.0,67314.0,0.141]
[1722293935084,0.61539593,67315.0,67314.0,0.141]
[1722293935295,0.76395093,67315.0,67314.0,0.141]
[1722293935505,0.148561,67312.0,67311.0,0.078]
[1722293935706,0.29166039,67312.0,67311.0,0.078]
[1722293935906,0.30418359,67312.0,67311.0,0.078]
[1722293937527,0.15562259,67312.0,67311.0,0.078]
[1722293937695,0.15562259,67312.0,67311.0,0.1159272]
[1722293937899,0.014,67320.0,67319.0,0.160546]
[1722293938104,0.014,67320.0,67319.0,1.01393656]
[1722293938305,0.44444115,67336.0,67330.0,0.1492]
[1722293938508,0.44444115,67336.0,67335.0,0.15804355]
[1722293938672,0.148507,67337.0,67335.0,0.15804355]
[1722293938868,0.148507,67337.0,67330.0,0.297722]
[1722293938869,0.44552,67337.0,67336.0,0.0865]
[1722293939103,0.44552,67337.0,67330.0,0.1492]
[1722293939104,0.297021,67336.0,67330.0,0.1492]
[1722293939308,0.296987,67343.0,67330.0,0.1492]
[1722293939309,0.44012239,67335.0,67330.0,0.1492]
[1722293939554,0.14309939,67335.0,67330.0,0.1492]
[1722293939727,0.29161139,67335.0,67330.0,0.1492]
[1722293939930,0.148513,67334.0,67330.0,0.1492]
[1722293940198,0.14309939,67333.0,67330.0,0.1492]
[1722293940841,0.14309939,67333.0,67330.0,0.1502]
[1722293941397,0.14309939,67333.0,67330.0,0.1492]
[1722293941595,0.16640003,67333.0,67330.0,0.1492]
[1722293941960,0.14309939,67333.0,67330.0,0.1492]
[1722293942358,0.29161539,67333.0,67330.0,0.1492]
[1722293943077,0.30561539,67333.0,67330.0,0.1502]
[1722293943280,0.31861539,67333.0,67330.0,0.1502]
[1722293943479,0.148519,67331.0,67330.0,0.001]
[1722293943687,0.58865739,67331.0,67330.0,0.001]
[1722293944552,0.148522,67330.0,67326.0,0.1453]
[1722293944715,0.14309939,67329.0,67326.0,0.1453]
[1722293945293,0.16640076,67329.0,67326.0,0.1453]
[1722293945522,0.01254364,67328.0,67326.0,0.1453]
[1722293945729,0.14309939,67327.0,67326.0,0.1453]
[1722293946107,0.15566578,67327.0,67326.0,0.1453]
[1722293946990,0.15566578,67327.0,67326.0,0.1463]
[1722293947142,0.15566578,67327.0,67326.0,0.1453]
[1722293947560,0.16566578,67327.0,67326.0,0.1463]
[1722293948126,0.17766578,67327.0,67326.0,0.1463]
[1722293948393,0.16566578,67327.0,67326.0,0.1463]
[1722293948821,0.17766578,67327.0,67326.0,0.1463]
[1722293949057,0.31619378,67327.0,67326.0,0.1453]
[1722293949267,0.31619378,67327.0,67326.0,0.1463]
[1722293949466,0.32619378,67327.0,67326.0,0.1463]
[1722293950026,0.31619378,67327.0,67326.0,0.1453]
[1722293950485,0.32619378,67327.0,67326.0,0.1463]
[1722293950811,1.20536478,67327.0,67326.0,0.001]
[1722293951139,1.24609164,67327.0,67326.0,0.001]
[1722293951555,1.26939538,67327.0,67326.0,0.001]
[1722293951737,1.24609164,67327.0,67326.0,0.001]
[1722293952566,1.21736478,67327.0,67326.0,0.001]
[1722293952792,0.03456639,67327.0,67326.0,1.105355]
[1722293952995,0.022,67327.0,67326.0,1.5129525]
[1722293953979,0.01,67327.0,67326.0,1.5129525]
[1722293954211,0.022,67327.0,67326.0,1.5129525]
[1722293954435,0.04529949,67327.0,67326.0,1.5129525]
[1722293954783,0.01,67327.0,67326.0,1.5129525]
[1722293955285,0.012,67327.0,67326.0,1.5129525]
[1722293957530,0.002,67327.0,67326.0,1.5119525]
[1722293957736,0.02529953,67327.0,67326.0,1.5119525]
[1722293959135,0.002,67327.0,67326.0,1.5119525]
[1722293961539,0.00084,67333.0,67332.0,0.591852]
[1722293961779,0.00084,67333.0,67332.0,0.3540022]
[1722293962017,0.00084,67333.0,67332.0,0.591852]
[1722293962148,0.0241386,67333.0,67332.0,0.591852]
[1722293962540,0.00084,67333.0,67332.0,0.591852]
[1722293962687,0.00084,67333.0,67332.0,0.294817]
[1722293963151,0.00084,67333.0,67332.0,0.3837079]
[1722293963355,0.01354725,67333.0,67332.0,0.3837079]
[1722293963556,0.00084,67333.0,67332.0,0.3837079]
[1722293963810,0.02354725,67333.0,67332.0,0.3837079]
[1722293964157,0.01354725,67333.0,67332.0,0.3837079]
[1722293964566,0.02354725,67333.0,67332.0,0.3837079]
[1722293964793,0.02354725,67333.0,67332.0,0.6807429]
[1722293964986,0.02354725,67333.0,67332.0,0.8971429]
[1722293964987,0.00084,67333.0,67332.0,0.8971429]
[1722293965195,0.01084,67333.0,67332.0,1.1941779]
[1722293965417,0.03413914,67333.0,67332.0,1.1941779]
[1722293966660,0.04113914,67333.0,67332.0,1.1951779]
[1722293966821,0.01784,67333.0,67332.0,1.1951779]
[1722293967374,0.01784,67333.0,67332.0,1.4922129]
[1722293967509,0.00784,67333.0,67332.0,1.4922129]
[1722293967909,0.1,67350.0,67332.0,1.4922129]
[1722293967910,0.296878,67368.0,67346.0,1.181605]
[1722293968288,0.305261,67365.0,67346.0,1.181605]
[1722293968489,0.296904,67362.0,67346.0,1.181605]
[1722293968623,0.148459,67359.0,67346.0,1.181605]
[1722293968822,0.296904,67362.0,67346.0,1.181605]
[1722293969220,0.296904,67362.0,67346.0,1.398005]
[1722293969221,0.01451164,67347.0,67346.0,1.398005]
[1722293969403,0.02051164,67347.0,67346.0,1.399005]
[1722293969607,0.02051164,67347.0,67346.0,1.398005]
[1722293969608,0.01451164,67347.0,67346.0,1.398005]
[1722293970162,0.03780569,67347.0,67346.0,1.398005]
[1722293970364,0.03780569,67347.0,67346.0,1.4359322]
[1722293970614,0.04180569,67347.0,67346.0,1.4359322]
[1722293970914,0.02780569,67347.0,67346.0,1.4359322]
[1722293971118,0.03380569,67347.0,67346.0,1.4359322]
[1722293971254,0.01051164,67347.0,67346.0,1.4359322]
[1722293971459,0.00451164,67347.0,67346.0,1.4359322]
[1722293971737,0.00951164,67347.0,67346.0,1.4359322]
[1722293971921,0.00551164,67347.0,67346.0,1.4359322]
[1722293972325,0.00851164,67347.0,67346.0,1.4359322]
[1722293972729,0.00851164,67347.0,67346.0,1.1389592]
[1722293974096,0.00351164,67347.0,67346.0,1.1389592]
[1722293974340,0.02680519,67347.0,67346.0,1.1389592]
[1722293974544,0.03180519,67347.0,67346.0,1.1389592]
[1722293974696,0.00851164,67347.0,67346.0,1.1389592]
[1722293977751,0.03180523,67347.0,67346.0,1.1389592]
[1722293977957,0.02880523,67347.0,67346.0,1.1389592]
[1722293978587,0.02880523,67347.0,67346.0,0.4833862]
[1722293979866,0.02880523,67347.0,67345.0,0.148488]
[1722293980073,0.02880523,67347.0,67342.0,0.07154355]
[1722293980279,0.148492,67344.0,67336.0,0.437117]
[1722293980578,0.30976467,67346.0,67340.0,0.148499]
[1722293980777,0.148487,67346.0,67341.0,0.148497]
[1722293980985,0.01279067,67345.0,67340.0,0.1485]
[1722293981195,0.148493,67343.0,67339.0,0.148502]
[1722293981358,0.01279067,67345.0,67340.0,0.148499]
[1722293981359,0.148489,67345.0,67340.0,0.148499]
[1722293981595,0.01279067,67342.0,67341.0,0.148497]
[1722293981779,0.148489,67345.0,67341.0,0.148497]
[1722293982229,0.01279067,67344.0,67341.0,0.148497]
[1722293982377,0.16128267,67344.0,67338.0,0.297007]
[1722293982579,0.16128267,67344.0,67340.0,0.148499]
[1722293982785,0.01279067,67344.0,67341.0,0.003]
[1722293983005,0.01279067,67344.0,67340.0,0.148498]
[1722293983207,0.14849,67345.0,67340.0,0.148498]
[1722293983447,0.14849,67345.0,67341.0,0.001]
[1722293983598,0.03608631,67344.0,67340.0,0.148498]
[1722293983802,0.02329564,67344.0,67340.0,0.148498]
[1722293984007,0.14849,67345.0,67340.0,0.148498]
[1722293984448,0.01279067,67344.0,67340.0,0.148498]
[1722293984658,0.01279067,67344.0,67342.0,0.07154355]
[1722293984868,0.21501103,67347.0,67342.0,0.07154355]
[1722293985074,0.01279067,67343.0,67342.0,0.07154355]
[1722293985402,0.148489,67345.0,67342.0,0.07154355]
[1722293985608,0.01279067,67343.0,67342.0,0.07154355]
[1722293985790,0.148489,67345.0,67342.0,0.07154355]
[1722293986261,0.21001103,67347.0,67346.0,0.742432]
[1722293986262,0.00051164,67347.0,67346.0,0.742432]
[1722293986476,0.00551164,67347.0,67346.0,0.742432]
[1722293986893,0.00051164,67347.0,67346.0,0.742432]
[1722293987294,0.0238059,67347.0,67346.0,0.742432]
[1722293987498,0.0238059,67347.0,67346.0,1.039405]
[1722293987700,0.0238059,67347.0,67346.0,1.26440439]
[1722293988342,0.00051164,67347.0,67346.0,1.26440439]
[1722293989571,0.00551164,67347.0,67346.0,1.26440439]
[1722293989773,0.01151164,67347.0,67346.0,1.26440439]
[1722293990899,0.00051164,67347.0,67346.0,1.26440439]
[1722293991293,0.00251164,67347.0,67346.0,1.26440439]
[1722293991543,0.00051164,67347.0,67346.0,1.26440439]
[1722293991724,0.02980447,67347.0,67346.0,1.26440439]
[1722293993933,0.02780447,67347.0,67346.0,1.26440439]
[1722293994477,0.02580447,67347.0,67346.0,1.26440439]
[1722293994881,0.02980447,67347.0,67346.0,1.26440439]
[1722293997151,0.02780447,67347.0,67346.0,0.96743139]
[1722293997355,0.02980447,67347.0,67346.0,1.18383139]
[1722293997551,0.02980447,67347.0,67346.0,1.30721505]
[1722293998152,0.02980447,67347.0,67346.0,1.18383139]
[1722293998153,0.02380447,67347.0,67346.0,1.18383139]
[1722293998357,0.02380447,67347.0,67346.0,1.30721726]
[1722293998586,0.02580447,67347.0,67346.0,1.18383139]
[1722293998776,0.02580447,67347.0,67346.0,1.30721201]
[1722294000135,0.02580447,67347.0,67346.0,1.60418501]
[1722294000536,0.00251164,67347.0,67346.0,1.60418501]
[1722294000942,0.00251164,67347.0,67346.0,0.26648074]
[1722294001303,0.14961103,67347.0,67335.0,0.3587]
[1722294001478,0.14961103,67347.0,67336.0,0.12340057]
[1722294001617,0.14961103,67347.0,67340.0,0.296997]
[1722294001817,0.296975,67346.0,67339.0,0.297004]
[1722294002190,0.14961103,67347.0,67341.0,0.148497]
[1722294002191,0.148489,67345.0,67341.0,0.148497]
[1722294002341,0.148489,67345.0,67340.0,0.148498]
[1722294002542,0.14361103,67347.0,67339.0,0.292004]
[1722294002749,0.14761103,67347.0,67340.0,0.07222476]
[1722294003334,0.148487,67346.0,67341.0,0.148497]
[1722294003536,0.008,67345.0,67343.0,0.148491]
[1722294003667,0.008,67345.0,67344.0,0.10261098]
[1722294003867,0.14361103,67347.0,67344.0,0.25110198]
[1722294004074,0.14361103,67347.0,67344.0,0.10261098]
[1722294004278,0.14849,67345.0,67340.0,0.22172376]
[1722294004481,0.148494,67343.0,67340.0,0.07222476]
[1722294005319,0.148494,67343.0,67339.0,0.148501]
[1722294005700,0.148491,67344.0,67339.0,0.1485]
[1722294006100,0.148491,67344.0,67340.0,0.148499]
[1722294006678,0.148491,67344.0,67336.0,0.148507]
[1722294006679,0.148497,67342.0,67336.0,0.148507]
[1722294006884,0.006,67345.0,67334.0,0.4785]
[1722294006885,0.14309939,67341.0,67334.0,0.4785]
[1722294007119,0.1485,67340.0,67336.0,0.148508]
[1722294007323,0.14309939,67341.0,67334.0,0.627012]
[1722294007324,0.148503,67339.0,67334.0,0.627012]
[1722294007521,0.148503,67339.0,67334.0,0.627013]
[1722294007937,0.211603,67339.0,67334.0,0.627013]
[1722294008154,0.20619939,67339.0,67334.0,0.4785]
[1722294008355,0.148507,67337.0,67334.0,0.4785]
[1722294008556,0.14851,67336.0,67334.0,0.4785]
[1722294011102,0.14851,67336.0,67333.0,0.000913]
[1722294011103,0.148506,67337.0,67333.0,0.149428]
[1722294011488,0.171803,67337.0,67333.0,0.149428]
[1722294012036,0.171804,67337.0,67333.0,0.000913]
[1722294012364,0.148509,67336.0,67333.0,0.000913]
[1722294013987,0.297018,67336.0,67333.0,0.000913]
[1722294014169,0.023297,67337.0,67333.0,0.000913]
[1722294014374,0.44011739,67336.0,67333.0,0.000913]
[1722294014587,0.445539,67334.0,67333.0,0.000913]
[1722294015527,0.89844353,67334.0,67333.0,0.000913]
[1722294016070,1.04234353,67334.0,67333.0,0.000913]
[1722294017087,0.74531753,67334.0,67333.0,0.003913]
[1722294017297,0.44829153,67334.0,67333.0,0.003913]
[1722294017489,0.74531753,67334.0,67333.0,0.0191569]
[1722294017788,0.66391753,67334.0,67333.0,0.0191569]
[1722294017984,0.66391753,67334.0,67333.0,0.003913]
[1722294018186,0.687217,67334.0,67333.0,0.003913]
[1722294018424,0.66391753,67334.0,67333.0,0.003913]
[1722294018790,0.67791753,67334.0,67333.0,0.003913]
[1722294019374,0.66391753,67334.0,67333.0,0.003913]
[1722294020621,0.66391753,67334.0,67333.0,0.000913]
[1722294020781,0.66391753,67334.0,67333.0,0.001913]
[1722294021106,0.67491753,67334.0,67333.0,0.001913]
[1722294021683,0.66391753,67334.0,67333.0,0.000913]
[1722294021883,0.66391753,67334.0,67333.0,0.001913]
[1722294021884,1.33576953,67334.0,67333.0,0.001913]
[1722294022116,1.34676953,67334.0,67333.0,0.001913]
[1722294022321,1.38856977,67334.0,67333.0,0.000913]
[1722294022493,1.33576953,67334.0,67333.0,0.000913]
[1722294022699,1.34676953,67334.0,67333.0,0.001913]
[1722294023240,1.36076953,67334.0,67333.0,0.001913]
[1722294023741,1.65779553,67334.0,67333.0,0.001913]
[1722294023966,1.85321121,67334.0,67333.0,0.000913]
[1722294024098,1.84090924,67334.0,67333.0,0.001913]
[1722294024297,1.82690924,67334.0,67333.0,0.001913]
[1722294024942,1.51888324,67334.0,67333.0,0.000913]
[1722294025129,1.54188324,67334.0,67333.0,0.000913]
[1722294025306,1.46076953,67334.0,67333.0,0.001913]
[1722294025511,1.46076953,67334.0,67333.0,0.000913]
[1722294025512,1.44976953,67334.0,67333.0,0.000913]
[1722294025733,1.43576953,67334.0,67333.0,0.000913]
[1722294025991,1.49131506,67334.0,67333.0,0.001913]
[1722294026818,1.51461711,67334.0,67333.0,0.001913]
[1722294027058,1.51461711,67334.0,67333.0,0.000913]
[1722294027059,1.48031506,67334.0,67333.0,0.000913]
[1722294027569,1.46700814,67334.0,67333.0,0.000913]
[1722294027771,1.48100814,67334.0,67333.0,0.000913]
[1722294029875,1.49200814,67334.0,67333.0,0.001913]
[1722294030526,1.51531023,67334.0,67333.0,0.001913]
[1722294030732,1.49200814,67334.0,67333.0,0.001913]
[1722294031092,1.49200814,67334.0,67333.0,0.000913]
[1722294031093,1.85061654,67334.0,67333.0,0.000913]
[1722294031309,1.86161654,67334.0,67333.0,0.001913]
[1722294031510,1.87561654,67334.0,67333.0,0.001913]
[1722294031711,1.87561654,67334.0,67333.0,0.000913]
[1722294031712,1.86561654,67334.0,67333.0,0.000913]
[1722294031987,1.85161654,67334.0,67333.0,0.001913]
[1722294032194,1.87661654,67334.0,67333.0,0.001913]
[1722294032450,1.86561654,67334.0,67333.0,0.000913]
[1722294032681,1.87672338,67334.0,67333.0,0.001913]
[1722294032883,1.86572338,67334.0,67333.0,0.000913]
[1722294033620,1.81203414,67334.0,67333.0,0.000913]
[1722294034226,1.83603414,67334.0,67333.0,0.000913]
[1722294034425,1.80103414,67334.0,67333.0,0.000913]
[1722294034791,1.82433768,67334.0,67333.0,0.000913]
[1722294034910,1.83833768,67334.0,67333.0,0.000913]
[1722294035110,1.82433768,67334.0,67333.0,0.000913]
[1722294035559,1.82503414,67334.0,67333.0,0.000913]
[1722294035763,1.78703414,67334.0,67333.0,0.000913]
[1722294036136,1.81103414,67334.0,67333.0,0.000913]
[1722294036358,1.48100814,67334.0,67333.0,0.000913]
[1722294036883,1.49500814,67334.0,67333.0,0.000913]
[1722294037265,1.48100814,67334.0,67333.0,0.000913]
[1722294037471,1.55791871,67334.0,67333.0,0.000913]
[1722294037673,1.57191871,67334.0,67333.0,0.000913]
[1722294037871,1.55791871,67334.0,67333.0,0.000913]
[1722294038072,1.57191871,67334.0,67333.0,0.000913]
[1722294038435,0.83756671,67334.0,67333.0,0.000913]
[1722294038640,1.13459271,67334.0,67333.0,0.000913]
[1722294038836,1.49401871,67334.0,67333.0,0.000913]
[1722294039277,1.56971871,67334.0,67333.0,0.000913]
[1722294039479,1.55571871,67334.0,67333.0,0.000913]
[1722294039641,1.5324153,67334.0,67333.0,0.000913]
[1722294039844,1.5464153,67334.0,67333.0,0.000913]
[1722294040095,1.49280814,67334.0,67333.0,0.000913]
[1722294040434,1.46480814,67334.0,67333.0,0.000913]
[1722294040609,1.49280814,67334.0,67333.0,0.001913]
[1722294041417,1.47880814,67334.0,67333.0,0.000913]
[1722294041801,1.49280814,67334.0,67333.0,0.001913]
[1722294042017,1.47880814,67334.0,67333.0,0.000913]
[1722294042181,1.49280814,67334.0,67333.0,0.000913]
[1722294042381,1.50680814,67334.0,67333.0,0.001913]
[1722294042836,1.49280814,67334.0,67333.0,0.001913]
[1722294043138,1.53011051,67334.0,67333.0,0.001913]
[1722294043637,1.46480814,67334.0,67333.0,0.000913]
[1722294043835,1.49280814,67334.0,67333.0,0.001913]
[1722294044036,1.35470814,67334.0,67333.0,0.001913]
[1722294044216,1.34070814,67334.0,67333.0,0.000913]
[1722294044422,1.35470814,67334.0,67333.0,0.001913]
[1722294049007,1.32346953,67334.0,67333.0,0.001913]
[1722294049809,1.37860129,67334.0,67333.0,0.001913]
[1722294050818,1.35529892,67334.0,67333.0,0.001913]
[1722294053260,1.35612892,67334.0,67333.0,0.001913]
[1722294054115,1.37943129,67334.0,67333.0,0.001913]
[1722294054787,1.08240529,67334.0,67333.0,0.143713]
[1722294055188,1.43297746,67334.0,67333.0,0.143713]
[1722294055415,1.40967509,67334.0,67333.0,0.001913]
[1722294056292,1.40961433,67334.0,67333.0,0.001913]
[1722294056497,1.49785879,67334.0,67333.0,0.001913]
[1722294056896,1.40961433,67334.0,67333.0,0.001913]
[1722294057103,1.49785879,67334.0,67333.0,0.001913]
[1722294057301,1.40961433,67334.0,67333.0,0.001913]
[1722294057642,1.49788318,67334.0,67333.0,0.001913]
[1722294058827,1.40961433,67334.0,67333.0,0.001913]
[1722294058981,1.43291588,67334.0,67333.0,0.001913]
[1722294059187,1.5212278,67334.0,67333.0,0.001913]
[1722294059586,1.40961433,67334.0,67333.0,0.001913]
[1722294059787,1.40985853,67334.0,67333.0,0.001913]
[1722294060405,1.11283253,67334.0,67333.0,0.001913]
[1722294060629,1.20117057,67334.0,67333.0,0.001913]
[1722294060840,0.27026753,67334.0,67333.0,0.1585843]
[1722294061161,0.95910292,67334.0,67333.0,0.1585843]
[1722294061707,0.94510292,67334.0,67333.0,0.1585843]
[1722294062138,0.95910292,67334.0,67333.0,0.1585843]
[1722294062540,0.66207692,67334.0,67333.0,0.1585843]
[1722294062738,0.94510292,67334.0,67333.0,0.077613]
[1722294062944,0.94510292,67334.0,67333.0,0.001913]
[1722294062945,1.31962564,67334.0,67333.0,0.001913]
[1722294063143,1.2963261,67334.0,67333.0,0.000913]
[1722294063423,1.2823261,67334.0,67333.0,0.000913]
[1722294063630,1.2963261,67334.0,67333.0,0.001913]
[1722294063825,1.2963261,67334.0,67333.0,0.000913]
[1722294064038,1.2963261,67334.0,67333.0,0.001913]
[1722294064238,1.3103261,67334.0,67333.0,0.001913]
[1722294064637,1.2823261,67334.0,67333.0,0.000913]
[1722294064960,1.2963261,67334.0,67333.0,0.001913]
[1722294065358,1.29642508,67334.0,67333.0,0.001913]
[1722294066630,1.40808473,67334.0,67333.0,0.001913]
[1722294066967,1.26542931,67334.0,67333.0,0.001913]
[1722294067315,0.96840331,67334.0,67333.0,0.001913]
[1722294067525,0.94510292,67334.0,67333.0,0.0163343]
[1722294068137,0.94510292,67334.0,67333.0,0.001913]
[1722294068338,0.94943144,67334.0,67333.0,0.001913]
[1722294069090,0.96343144,67334.0,67333.0,0.001913]
[1722294070378,0.94943144,67334.0,67333.0,0.001913]
[1722294070563,0.96343144,67334.0,67333.0,0.001913]
[1722294070894,0.96343144,67334.0,67333.0,0.0163343]
[1722294071929,0.66640544,67334.0,67333.0,0.0163343]
[1722294072128,0.36937944,67334.0,67333.0,0.0980343]
[1722294072334,0.36937944,67334.0,67333.0,0.1640343]
[1722294072540,0.07776705,67334.0,67333.0,0.6095803]
[1722294072975,0.07776705,67334.0,67333.0,0.3125493]
[1722294073145,0.06498791,67334.0,67333.0,0.6095803]
[1722294073374,0.06300335,67334.0,67333.0,0.3115493]
[1722294073646,0.06300335,67334.0,67333.0,0.6095803]
[1722294073647,0.02883,67334.0,67333.0,0.6095803]
[1722294074022,0.06414515,67334.0,67333.0,0.6095803]
[1722294074807,0.05014515,67334.0,67333.0,0.6085803]
[1722294075008,0.02684544,67334.0,67333.0,0.6085803]
[1722294075208,0.03984544,67334.0,67333.0,0.6095803]
[1722294075423,0.01284544,67334.0,67333.0,0.6085803]
[1722294075627,0.14392939,67334.0,67333.0,0.148613]
[1722294075813,0.35623112,67334.0,67333.0,0.149613]
[1722294076008,0.21973356,67334.0,67333.0,0.149613]
[1722294076213,0.03884544,67334.0,67333.0,0.514528]
[1722294076452,0.03884544,67334.0,67333.0,0.8927158]
[1722294076657,0.02683,67334.0,67333.0,0.8927158]
[1722294077047,0.01283,67334.0,67333.0,0.8927158]
[1722294077445,0.02683,67334.0,67333.0,0.8927158]
[1722294078258,0.05012913,67334.0,67333.0,0.8927158]
[1722294078945,0.05012913,67334.0,67333.0,1.1897468]
[1722294079580,0.02683,67334.0,67333.0,1.1897468]
[1722294079785,0.02683,67334.0,67333.0,1.4867778]
[1722294080743,0.01283,67334.0,67333.0,1.4867778]
[1722294081691,0.02283,67334.0,67333.0,1.4867778]
[1722294083151,0.01283,67334.0,67333.0,1.4867778]
[1722294083352,0.01983,67334.0,67333.0,1.4877778]
[1722294083611,0.00783,67334.0,67333.0,1.4867778]
[1722294084191,0.03112787,67334.0,67333.0,1.4867778]
[1722294084361,0.03112787,67334.0,67333.0,1.4877778]
[1722294084362,0.03712787,67334.0,67333.0,1.4877778]
[1722294084564,0.00783,67334.0,67333.0,1.4867778]
[1722294085262,0.00783,67334.0,67333.0,1.3568778]
[1722294085640,0.00783,67334.0,67333.0,1.36572489]
[1722294086042,0.00083,67334.0,67333.0,1.36472489]
[1722294086461,0.00783,67334.0,67333.0,1.36472489]
[1722294087519,0.03412792,67334.0,67333.0,1.36472489]
[1722294087642,0.03112792,67334.0,67333.0,1.36472489]
[1722294088053,0.01083,67334.0,67333.0,1.36472489]
[1722294088662,0.01083,67334.0,67333.0,1.06769389]
[1722294090782,0.01083,67334.0,67333.0,0.77066289]
[1722294091079,0.01083,67334.0,67333.0,0.148613]
[1722294091375,0.03412826,67334.0,67333.0,0.169113]
[1722294091576,0.03412826,67334.0,67333.0,0.317628]
[1722294091773,0.01997253,67334.0,67333.0,0.317628]
[1722294091976,0.01997253,67334.0,67333.0,0.26768864]
[1722294092180,0.159343,67334.0,67333.0,0.087413]
[1722294092316,0.67551092,67334.0,67333.0,0.000913]
[1722294094569,0.66851092,67334.0,67333.0,0.000913]
[1722294094984,0.61161092,67334.0,67333.0,0.087413]
[1722294095186,0.33788411,67334.0,67333.0,0.087413]
[1722294095418,0.31458492,67334.0,67333.0,0.087413]
[1722294095826,0.61161092,67334.0,67333.0,0.087413]
[1722294097573,0.90863692,67334.0,67333.0,0.000913]
[1722294097774,1.39100283,67334.0,67333.0,0.000913]
[1722294098579,1.38400283,67334.0,67333.0,0.000913]
[1722294098785,1.41630341,67334.0,67333.0,0.000913]
[1722294098984,1.41330341,67334.0,67333.0,0.000913]
[1722294099185,1.41830341,67334.0,67333.0,0.001913]
[1722294099626,1.40430341,67334.0,67333.0,0.000913]
[1722294099833,1.41830341,67334.0,67333.0,0.001913]
[1722294100031,1.41830341,67334.0,67333.0,0.000913]
[1722294100206,1.43230341,67334.0,67333.0,0.000913]
[1722294100516,1.43230341,67334.0,67333.0,0.001913]
[1722294100517,1.44630341,67334.0,67333.0,0.001913]
[1722294102057,1.41830341,67334.0,67333.0,0.000913]
[1722294102488,1.43230341,67334.0,67333.0,0.001913]
[1722294103726,1.41830341,67334.0,67333.0,0.001913]
[1722294104111,1.40900283,67334.0,67333.0,0.001913]
[1722294104573,1.39500283,67334.0,67333.0,0.001913]
[1722294105136,1.40900283,67334.0,67333.0,0.001913]
[1722294107402,1.43230412,67334.0,67333.0,0.001913]
[1722294108518,1.40900283,67334.0,67333.0,0.001913]
[1722294111463,1.43230412,67334.0,67333.0,0.001913]
[1722294113280,1.97503654,67334.0,67333.0,0.001913]
[1722294113439,2.05003589,67334.0,67333.0,0.001913]
[1722294113664,1.93990619,67334.0,67333.0,0.001913]
[1722294113863,1.92990619,67334.0,67333.0,0.001913]
[1722294114064,1.91590619,67334.0,67333.0,0.000913]